fUST/lending_fUST_20250323
["ID","MTS","AMOUNT","RATE_DAILY","PERIOD"]
[356575654,1742705433308,-500.0,0.00021618,2]
[356575655,1742705433317,-500.0,0.00021618,2]
[356575656,1742705433327,-500.0,0.00021618,2]
[356575657,1742705433336,-500.0,0.00021618,2]
[356575658,1742705433346,-500.0,0.00021618,2]
[356575659,1742705433355,-500.0,0.00021618,2]
[356575660,1742705433364,-500.0,0.00021618,2]
[356575661,1742705433374,-500.0,0.00021618,2]
[356575662,1742705433383,-500.0,0.00021618,2]
[356575663,1742705433396,-543.5450709,0.00021618,2]
[356575664,1742705433406,-500.0,0.00021618,2]
[356575665,1742705433416,-500.0,0.00021618,2]
[356575666,1742705433426,-500.0,0.00021618,2]
[356575667,1742705433437,-500.0,0.00021618,2]
[356575668,1742705433447,-500.0,0.00021618,2]
[356575669,1742705433456,-500.0,0.00021618,2]
[356575670,1742705433467,-500.0,0.00021618,2]
[356575671,1742705433477,-500.0,0.00021618,2]
[356575672,1742705433487,-1238.69924079,0.00021618,2]
[356575673,1742705433496,-1238.69924079,0.00021618,2]
[356575674,1742705433506,-1238.69924079,0.00021618,2]
[356575675,1742705433515,-1238.69924079,0.00021618,2]
[356575676,1742705433524,-1238.69924079,0.00021618,2]
[356575677,1742705433533,-1238.69924079,0.00021618,2]
[356575678,1742705433542,-1238.69924079,0.00021618,2]
[356575679,1742705433551,-1238.69924079,0.00021618,2]
[356575680,1742705433561,-1238.69924079,0.00021618,2]
[356575681,1742705433572,-1238.69924079,0.00021618,2]
[356575682,1742705433581,-1238.69924079,0.00021618,2]
[356575683,1742705433590,-1238.69924079,0.00021618,2]
[356575684,1742705433599,-434.87295196,0.00021618,2]
[356575685,1742705433670,-397.1982,0.00022173,7]
[356575686,1742705433691,-397.1982,0.00022173,7]
[356575687,1742705433714,-397.1982,0.00022191,7]
[356575688,1742705433735,-397.1982,0.00022191,7]
[356575689,1742705433756,-397.1982,0.00022191,7]
[356575690,1742705433783,-397.1982,0.00022191,7]
[356575691,1742705433807,-397.1982,0.00022191,7]
[356575692,1742705433827,-397.1982,0.00022191,7]
[356575693,1742705433853,-834.51197368,0.00022191,7]
[356575694,1742705433876,-12458.93820146,0.00022191,7]
[356575695,1742705433897,-160.0,0.00022191,7]
[356575696,1742705433918,-279.314617,0.00022191,7]
[356575707,1742705437624,-803.82628883,0.00021618,2]
[356575709,1742705437633,-1238.69924079,0.00021618,2]
[356575711,1742705437643,-1238.69924079,0.00021618,2]
[356575713,1742705437651,-1238.69924079,0.00021618,2]
[356575714,1742705437661,-1238.69924079,0.00021618,2]
[356575716,1742705437670,-1238.69924079,0.00021618,2]
[356575717,1742705437679,-1238.69924079,0.00021618,2]
[356575718,1742705437688,-1238.69924079,0.00021618,2]
[356575719,1742705437697,-1238.69924079,0.00021618,2]
[356575720,1742705437707,-1238.69924079,0.00021618,2]
[356575721,1742705437716,-1238.69924079,0.00021618,2]
[356575722,1742705437725,-1238.69924079,0.00021618,2]
[356575723,1742705437735,-1238.69924079,0.00021618,2]
[356575724,1742705437745,-1238.69924079,0.00021618,2]
[356575725,1742705437754,-1238.69924079,0.00021618,2]
[356575726,1742705437763,-1238.69924079,0.00021618,2]
[356575727,1742705437772,-1203.60276231,0.00021618,2]
[356575728,1742705437781,-1203.60276231,0.00021618,2]
[356575729,1742705437790,-1203.60276231,0.00021618,2]
[356575730,1742705437799,-1203.60276231,0.00021618,2]
[356575731,1742705437808,-1203.60276231,0.00021618,2]
[356575732,1742705437818,-1203.60276231,0.00021618,2]
[356575733,1742705437827,-1203.60276231,0.00021618,2]
[356575734,1742705437836,-1203.60276231,0.00021618,2]
[356575735,1742705437845,-1203.60276231,0.00021618,2]
[356575736,1742705437854,-1203.60276231,0.00021618,2]
[356575737,1742705437863,-1203.60276231,0.00021618,2]
[356575738,1742705437871,-1203.60276231,0.00021618,2]
[356575739,1742705437881,-1203.60276231,0.00021618,2]
[356575740,1742705437890,-1203.60276231,0.00021618,2]
[356575741,1742705437899,-1203.60276225,0.00021618,2]
[356575742,1742705437908,-4619.77443173,0.00021618,2]
[356575743,1742705437917,-412.82545911,0.00021655,2]
[356575744,1742705437926,-800.0,0.00021699,2]
[356575745,1742705437935,-412.82545911,0.000217,2]
[356575746,1742705437944,-151.0,0.00021704,2]
[356575747,1742705437954,-60413.33268768,0.00021717,2]
[356575748,1742705437967,-190925.09020345,0.00021717,2]
[356575749,1742705437978,-6608.7482034,0.00021717,2]
[356575750,1742705437989,-3855.29718945,0.00021717,2]
[356575751,1742705438000,-3345.74423928,0.00021717,2]
[356575752,1742705438011,-1102.27126275,0.00021717,2]
[356575753,1742705438117,-21335.19734771,0.00021717,2]
[356575763,1742705439975,-3262.59799749,0.00021717,2]
[356575764,1742705440031,-31151.72086879,0.00021717,2]
[356575765,1742705440040,-800.0,0.000218,2]
[356575766,1742705440051,-800.0,0.00021829,2]
[356575767,1742705440060,-504.18479309,0.0002187,2]
[356575768,1742705440070,-293.31878123,0.00021904,2]
[356575769,1742705440079,-318.69210377,0.00021916,2]
[356575770,1742705440088,-169.22,0.00021917,2]
[356575771,1742705440097,-169.22,0.00021917,2]
[356575772,1742705440108,-169.22,0.00021917,2]
[356575773,1742705440117,-169.22,0.00021917,2]
[356575774,1742705440126,-169.22,0.00021917,2]
[356575775,1742705440135,-169.26959462,0.00021917,2]
[356575776,1742705440145,-500.0,0.00021917,2]
[356575777,1742705440154,-500.0,0.00021917,2]
[356575778,1742705440162,-500.0,0.00021917,2]
[356575779,1742705440172,-500.0,0.00021917,2]
[356575780,1742705440182,-500.0,0.00021917,2]
[356575781,1742705440191,-500.0,0.00021917,2]
[356575782,1742705440200,-500.0,0.00021917,2]
[356575783,1742705440209,-582.37,0.00021917,2]
[356575784,1742705440218,-759.44,0.00021917,2]
[356575785,1742705440227,-591.01,0.00021917,2]
[356575786,1742705440236,-500.0,0.00021917,2]
[356575787,1742705440245,-500.0,0.00021917,2]
[356575788,1742705440255,-490.61313807,0.00021917,2]
[356575789,1742705440264,-586.7,0.00021917,2]
[356575790,1742705440273,-500.0,0.00021917,2]
[356575791,1742705440282,-500.0,0.00021917,2]
[356575792,1742705440292,-636.37,0.00021917,2]
[356575793,1742705440301,-500.0,0.00021917,2]
[356575794,1742705440309,-500.0,0.00021917,2]
[356575795,1742705440319,-941.95,0.00021917,2]
[356575796,1742705440328,-500.0,0.00021917,2]
[356575797,1742705440337,-500.0,0.00021917,2]
[356575798,1742705440345,-549.35065023,0.00021917,2]
[356575799,1742705440355,-500.0,0.00021917,2]
[356575800,1742705440364,-1383.17,0.00021917,2]
[356575801,1742705440374,-500.0,0.00021917,2]
[356575802,1742705440383,-500.0,0.00021917,2]
[356575803,1742705440394,-626.81,0.00021917,2]
[356575804,1742705440404,-397.1982,0.00021917,2]
[356575805,1742705440413,-397.1982,0.00021917,2]
[356575806,1742705440422,-397.1982,0.00021917,2]
[356575807,1742705440431,-397.1982,0.00021917,2]
[356575808,1742705440440,-397.1982,0.00021917,2]
[356575809,1742705440451,-397.1982,0.00021917,2]
[356575810,1742705440460,-397.1982,0.00021917,2]
[356575811,1742705440469,-397.1982,0.00021917,2]
[356575812,1742705440479,-397.1982,0.00021917,2]
[356575813,1742705440489,-500.0,0.00021917,2]
[356575814,1742705440498,-397.1982,0.00021917,2]
[356575815,1742705440507,-397.1982,0.00021917,2]
[356575816,1742705440517,-397.1982,0.00021917,2]
[356575817,1742705440528,-685.66,0.00021917,2]
[356575818,1742705440539,-539.0,0.00021917,2]
[356575819,1742705440549,-500.0,0.00021917,2]
[356575820,1742705440559,-693.67,0.00021917,2]
[356575821,1742705440568,-510.71339617,0.00021917,2]
[356575822,1742705440578,-925.35,0.00021917,2]
[356575823,1742705440587,-514.06258772,0.00021917,2]
[356575824,1742705440596,-422.3758076,0.00021917,2]
[356575825,1742705440606,-500.0,0.00021917,2]
[356575826,1742705440615,-500.0,0.00021917,2]
[356575827,1742705440625,-521.06698849,0.00021917,2]
[356575828,1742705440634,-513.48770013,0.00021917,2]
[356575829,1742705440643,-500.68117756,0.00021917,2]
[356575830,1742705440653,-661.59,0.00021917,2]
[356575831,1742705440662,-511.6732148,0.00021917,2]
[356575832,1742705440671,-612.76042838,0.00021917,2]
[356575833,1742705440680,-500.0,0.00021917,2]
[356575834,1742705440689,-500.0,0.00021917,2]
[356575835,1742705440698,-500.0,0.00021917,2]
[356575836,1742705440708,-500.0,0.00021917,2]
[356575837,1742705440717,-766.19,0.00021917,2]
[356575838,1742705440726,-500.0,0.00021917,2]
[356575839,1742705440735,-500.0,0.00021917,2]
[356575840,1742705440744,-500.0,0.00021917,2]
[356575841,1742705440753,-500.0,0.00021917,2]
[356575842,1742705440763,-500.0,0.00021917,2]
[356575843,1742705440772,-500.0,0.00021917,2]
[356575844,1742705440781,-500.0,0.00021917,2]
[356575845,1742705440790,-500.0,0.00021917,2]
[356575846,1742705440799,-571.67,0.00021917,2]
[356575847,1742705440809,-875.64,0.00021917,2]
[356575848,1742705440818,-563.54,0.00021917,2]
[356575849,1742705440827,-500.0,0.00021917,2]
[356575850,1742705440836,-500.0,0.00021917,2]
[356575851,1742705440845,-500.0,0.00021917,2]
[356575852,1742705440855,-500.0,0.00021917,2]
[356575853,1742705440864,-500.0,0.00021917,2]
[356575854,1742705440873,-500.0,0.00021917,2]
[356575855,1742705440883,-577.7,0.00021917,2]
[356575856,1742705440893,-515.82,0.00021917,2]
[356575857,1742705440902,-809.14,0.00021917,2]
[356575858,1742705440912,-500.0,0.00021917,2]
[356575859,1742705440924,-500.0,0.00021917,2]
[356575860,1742705440934,-500.0,0.00021917,2]
[356575861,1742705440944,-500.0,0.00021917,2]
[356575862,1742705440954,-500.0,0.00021917,2]
[356575863,1742705440964,-500.0,0.00021917,2]
[356575864,1742705440974,-500.0,0.00021917,2]
[356575865,1742705440984,-885.55,0.00021917,2]
[356575866,1742705440993,-510.73,0.00021917,2]
[356575867,1742705441003,-610.32480904,0.00021917,2]
[356575868,1742705441012,-500.0,0.00021917,2]
[356575869,1742705441023,-1143.15,0.00021917,2]
[356575870,1742705441033,-645.94,0.00021917,2]
[356575871,1742705441044,-438.06625858,0.00021917,2]
[356575872,1742705441054,-669.32,0.00021917,2]
[356575873,1742705441064,-500.0,0.00021917,2]
[356575874,1742705441074,-500.0,0.00021917,2]
[356575875,1742705441084,-639.48,0.00021917,2]
[356575876,1742705441094,-1399.24,0.00021917,2]
[356575877,1742705441103,-1692.35,0.00021917,2]
[356575878,1742705441113,-500.0,0.00021917,2]
[356575879,1742705441123,-2000.0,0.00021917,2]
[356575880,1742705441133,-569.01304725,0.00021917,2]
[356575881,1742705441143,-800.37,0.00021917,2]
[356575882,1742705441152,-628.5,0.00021917,2]
[356575883,1742705441162,-500.0,0.00021917,2]
[356575884,1742705441171,-640.75,0.00021917,2]
[356575885,1742705441181,-2380.72,0.00021917,2]
[356575886,1742705441191,-500.0,0.00021917,2]
[356575887,1742705441200,-500.0,0.00021917,2]
[356575888,1742705441211,-991.76,0.00021917,2]
[356575889,1742705441221,-500.0,0.00021917,2]
[356575890,1742705441231,-842.93,0.00021917,2]
[356575891,1742705441241,-588.98,0.00021917,2]
[356575892,1742705441252,-538.24,0.00021917,2]
[356575893,1742705441261,-500.0,0.00021917,2]
[356575894,1742705441271,-500.0,0.00021917,2]
[356575895,1742705441281,-500.0,0.00021917,2]
[356575896,1742705441291,-500.0,0.00021917,2]
[356575897,1742705441302,-500.0,0.00021917,2]
[356575898,1742705441312,-627.99,0.00021917,2]
[356575899,1742705441322,-500.0,0.00021917,2]
[356575900,1742705441331,-1120.6,0.00021917,2]
[356575901,1742705441341,-603.03,0.00021917,2]
[356575902,1742705441351,-880.93,0.00021917,2]
[356575903,1742705441361,-500.0,0.00021917,2]
[356575904,1742705441370,-500.0,0.00021917,2]
[356575905,1742705441380,-500.0,0.00021917,2]
[356575906,1742705441391,-653.09,0.00021917,2]
[356575907,1742705441404,-500.0,0.00021917,2]
[356575908,1742705441414,-500.0,0.00021917,2]
[356575909,1742705441424,-1571.61,0.00021917,2]
[356575910,1742705441435,-500.0,0.00021917,2]
[356575911,1742705441444,-2155.04,0.00021917,2]
[356575912,1742705441454,-500.0,0.00021917,2]
[356575913,1742705441464,-500.0,0.00021917,2]
[356575914,1742705441474,-1235.36,0.00021917,2]
[356575915,1742705441484,-500.0,0.00021917,2]
[356575916,1742705441494,-1209.25,0.00021917,2]
[356575917,1742705441504,-500.0,0.00021917,2]
[356575918,1742705441514,-755.75,0.00021917,2]
[356575919,1742705441524,-500.0,0.00021917,2]
[356575920,1742705441535,-500.0,0.00021917,2]
[356575921,1742705441545,-500.0,0.00021917,2]
[356575922,1742705441556,-500.0,0.00021917,2]
[356575923,1742705441566,-531.44,0.00021917,2]
[356575924,1742705441576,-296.73652376,0.00021917,2]
[356575925,1742705441588,-500.0,0.00021917,2]
[356575926,1742705441600,-1006.04,0.00021917,2]
[356575927,1742705441610,-500.0,0.00021917,2]
[356575928,1742705441620,-500.0,0.00021917,2]
[356575929,1742705441631,-761.08,0.00021917,2]
[356575930,1742705441640,-500.0,0.00021917,2]
[356575931,1742705441650,-825.17,0.00021917,2]
[356575932,1742705441659,-500.0,0.00021917,2]
[356575933,1742705441670,-500.0,0.00021917,2]
[356575934,1742705441679,-624.48,0.00021917,2]
[356575935,1742705441688,-933.56,0.00021917,2]
[356575936,1742705441699,-500.0,0.00021917,2]
[356575937,1742705441708,-1435.7,0.00021917,2]
[356575938,1742705441721,-567.47,0.00021917,2]
[356575939,1742705441733,-948.55,0.00021917,2]
[356575940,1742705441743,-774.25,0.00021917,2]
[356575941,1742705441753,-500.0,0.00021917,2]
[356575942,1742705441764,-560.68410818,0.00021917,2]
[356575943,1742705441774,-500.0,0.00021917,2]
[356575944,1742705441784,-500.0,0.00021917,2]
[356575945,1742705441794,-1056.74,0.00021917,2]
[356575946,1742705441804,-517.11648146,0.00021917,2]
[356575947,1742705441814,-500.0,0.00021917,2]
[356575948,1742705441824,-1259.98,0.00021917,2]
[356575949,1742705441833,-564.78,0.00021917,2]
[356575950,1742705441843,-164.904552,0.00021917,2]
[356575951,1742705441853,-728.23,0.00021917,2]
[356575952,1742705441863,-1085.66,0.00021917,2]
[356575953,1742705441873,-504.91661293,0.00021917,2]
[356575954,1742705441882,-500.0,0.00021917,2]
[356575955,1742705441894,-505.37368473,0.00021917,2]
[356575956,1742705441904,-511.72258429,0.00021917,2]
[356575957,1742705441914,-2757.01,0.00021917,2]
[356575958,1742705441924,-503.71767543,0.00021917,2]
[356575959,1742705441934,-507.9267433,0.00021917,2]
[356575960,1742705441944,-437.68745747,0.00021917,2]
[356575961,1742705441963,-80.87739933,0.00021917,2]
[356575962,1742705441974,-514.64111559,0.00021917,2]
[356575963,1742705441984,-901.07,0.00021917,2]
[356575964,1742705441993,-521.05104307,0.00021917,2]
[356575965,1742705442004,-500.0,0.00021917,2]
[356575966,1742705442014,-509.1308571,0.00021917,2]
[356575967,1742705442023,-502.8065372,0.00021917,2]
[356575968,1742705442034,-506.48570954,0.00021917,2]
[356575969,1742705442044,-508.01867678,0.00021917,2]
[356575970,1742705442054,-516.28977544,0.00021917,2]
[356575971,1742705442073,-5867.73,0.00021917,2]
[356575972,1742705442086,-523.64320303,0.00021917,2]
[356575973,1742705442097,-500.0,0.00021917,2]
[356575974,1742705442108,-558.54,0.00021917,2]
[356575975,1742705442121,-505.82098961,0.00021917,2]
[356575976,1742705442133,-509.98439273,0.00021917,2]
[356575977,1742705442145,-508.53251603,0.00021917,2]
[356575978,1742705442156,-500.0,0.00021917,2]
[356575979,1742705442167,-500.0,0.00021917,2]
[356575980,1742705442178,-9013.27,0.00021917,2]
[356575981,1742705442192,-515.19081149,0.00021917,2]
[356575982,1742705442203,-523.91,0.00021917,2]
[356575983,1742705442213,-527.59238725,0.00021917,2]
[356575984,1742705442224,-500.0,0.00021917,2]
[356575985,1742705442235,-500.0,0.00021917,2]
[356575986,1742705442246,-571.7259848,0.00021917,2]
[356575987,1742705442257,-506.19821335,0.00021917,2]
[356575989,1742705442268,-504.62564774,0.00021917,2]
[356575990,1742705442279,-1235.58,0.00021917,2]
[356575991,1742705442290,-500.0,0.00021917,2]
[356575992,1742705442300,-500.0,0.00021917,2]
[356575995,1742705442311,-305.5367252,0.00021917,2]
[356575997,1742705442321,-500.0,0.00021917,2]
[356575998,1742705442331,-500.0,0.00021917,2]
[356575999,1742705442342,-500.0,0.00021917,2]
[356576000,1742705442353,-500.0,0.00021917,2]
[356576001,1742705442363,-532.58967539,0.00021917,2]
[356576002,1742705442374,-524.96354414,0.00021917,2]
[356576003,1742705442384,-502.4129264,0.00021917,2]
[356576004,1742705442397,-500.0,0.00021917,2]
[356576005,1742705442407,-1105.66,0.00021917,2]
[356576008,1742705442417,-500.0,0.00021917,2]
[356576010,1742705442427,-514.79423578,0.00021917,2]
[356576012,1742705442438,-2973.15,0.00021917,2]
[356576014,1742705442448,-500.0,0.00021917,2]
[356576016,1742705442459,-860.97,0.00021917,2]
[356576018,1742705442470,-517.38803785,0.00021917,2]
[356576019,1742705442480,-503.3293976,0.00021917,2]
[356576020,1742705442491,-500.0,0.00021917,2]
[356576021,1742705442501,-500.0,0.00021917,2]
[356576022,1742705442512,-1098.01,0.00021917,2]
[356576023,1742705442522,-940.29,0.00021917,2]
[356576024,1742705442533,-500.0,0.00021917,2]
[356576025,1742705442544,-1917.6740131,0.00021917,2]
[356576026,1742705442627,-479.93791128,0.00021917,2]
[356576043,1742705445833,-265.57675315,0.00021916,2]
[356576044,1742705445844,-5788.94807562,0.00021917,2]
[356576045,1742705445853,-583.11131182,0.00021917,2]
[356576046,1742705445863,-500.0,0.00021917,2]
[356576047,1742705445874,-500.0,0.00021917,2]
[356576048,1742705445884,-798.32,0.00021917,2]
[356576049,1742705445894,-8204.45,0.00021917,2]
[356576050,1742705445904,-7097.35,0.00021917,2]
[356576051,1742705445914,-519.04,0.00021917,2]
[356576052,1742705445924,-3070.37,0.00021917,2]
[356576053,1742705445934,-500.0,0.00021917,2]
[356576054,1742705445945,-500.0,0.00021917,2]
[356576055,1742705445955,-2140.25,0.00021917,2]
[356576056,1742705445967,-2162.86,0.00021917,2]
[356576057,1742705445977,-500.0,0.00021917,2]
[356576058,1742705445988,-660.46,0.00021917,2]
[356576059,1742705445999,-500.0,0.00021917,2]
[356576060,1742705446010,-500.0,0.00021917,2]
[356576061,1742705446299,-500.0,0.00021917,2]
[356576062,1742705446309,-500.0,0.00021917,2]
[356576063,1742705446318,-708.44,0.00021917,2]
[356576064,1742705446328,-511.78014806,0.00021917,2]
[356576065,1742705446337,-500.0,0.00021917,2]
[356576066,1742705446348,-822.98,0.00021917,2]
[356576067,1742705446358,-1356.22,0.00021917,2]
[356576068,1742705446368,-354.10397058,0.00021917,2]
[356576069,1742705446377,-151.0,0.00021917,2]
[356576070,1742705446387,-151.0,0.00021917,2]
[356576071,1742705446399,-151.0,0.00021917,2]
[356576072,1742705446409,-151.0,0.00021917,2]
[356576073,1742705446419,-151.0,0.00021917,2]
[356576074,1742705446428,-151.0,0.00021917,2]
[356576075,1742705446437,-151.0,0.00021917,2]
[356576076,1742705446447,-500.0,0.00021917,2]
[356576077,1742705446458,-963.53,0.00021917,2]
[356576078,1742705446469,-513.55,0.00021917,2]
[356576079,1742705446478,-1476.1,0.00021917,2]
[356576080,1742705446488,-200.0,0.00021917,2]
[356576081,1742705446498,-527.3228533,0.00021917,2]
[356576082,1742705446507,-500.0,0.00021917,2]
[356576083,1742705446517,-500.0,0.00021917,2]
[356576084,1742705446527,-1410.26,0.00021917,2]
[356576085,1742705446536,-972.48,0.00021917,2]
[356576086,1742705446546,-500.0,0.00021917,2]
[356576087,1742705446555,-500.0,0.00021917,2]
[356576088,1742705446565,-500.0,0.00021917,2]
[356576089,1742705446575,-500.0,0.00021917,2]
[356576090,1742705446585,-735.56,0.00021917,2]
[356576091,1742705446594,-500.0,0.00021917,2]
[356576092,1742705446603,-286.287638,0.00021917,2]
[356576093,1742705446614,-286.287638,0.00021917,2]
[356576094,1742705446624,-386.90426554,0.00021917,2]
[356576095,1742705446633,-286.287638,0.00021917,2]
[356576096,1742705446643,-286.287638,0.00021917,2]
[356576097,1742705446652,-943.51,0.00021917,2]
[356576098,1742705446661,-286.287638,0.00021917,2]
[356576099,1742705446671,-286.287638,0.00021917,2]
[356576100,1742705446681,-286.287638,0.00021917,2]
[356576101,1742705446691,-500.0,0.00021917,2]
[356576102,1742705446700,-2388.37,0.00021917,2]
[356576103,1742705446710,-286.287638,0.00021917,2]
[356576104,1742705446721,-286.287638,0.00021917,2]
[356576105,1742705446731,-832.31,0.00021917,2]
[356576106,1742705446742,-286.287638,0.00021917,2]
[356576107,1742705446752,-286.287638,0.00021917,2]
[356576108,1742705446763,-286.287638,0.00021917,2]
[356576109,1742705446784,-500.0,0.00021917,2]
[356576110,1742705446796,-286.287638,0.00021917,2]
[356576111,1742705446807,-286.287638,0.00021917,2]
[356576112,1742705446818,-6107.36,0.00021917,2]
[356576113,1742705446828,-3180.63,0.00021917,2]
[356576114,1742705446838,-500.0,0.00021917,2]
[356576115,1742705446849,-500.0,0.00021917,2]
[356576116,1742705446859,-676.2,0.00021917,2]
[356576117,1742705446870,-577.81,0.00021917,2]
[356576118,1742705446880,-500.0,0.00021917,2]
[356576119,1742705446891,-2184.2,0.00021917,2]
[356576120,1742705446901,-500.0,0.00021917,2]
[356576121,1742705446912,-5568.28,0.00021917,2]
[356576122,1742705446922,-4208.01,0.00021917,2]
[356576123,1742705446933,-717.25,0.00021917,2]
[356576124,1742705446943,-626.43,0.00021917,2]
[356576125,1742705446954,-17476.59,0.00021917,2]
[356576126,1742705446965,-777.35,0.00021917,2]
[356576127,1742705446975,-2762.39,0.00021917,2]
[356576128,1742705446985,-1479.95,0.00021917,2]
[356576129,1742705446995,-11844.41,0.00021917,2]
[356576130,1742705447005,-500.0,0.00021917,2]
[356576131,1742705447015,-860.33,0.00021917,2]
[356576132,1742705447026,-1164.75,0.00021917,2]
[356576133,1742705447036,-560.22,0.00021917,2]
[356576134,1742705447046,-6096.86,0.00021917,2]
[356576135,1742705447056,-4648.18,0.00021917,2]
[356576136,1742705447066,-500.0,0.00021917,2]
[356576137,1742705447077,-500.0,0.00021917,2]
[356576138,1742705447088,-674.05,0.00021917,2]
[356576139,1742705447098,-500.0,0.00021917,2]
[356576140,1742705447108,-772.79,0.00021917,2]
[356576141,1742705447118,-500.0,0.00021917,2]
[356576142,1742705447128,-24779.84,0.00021917,2]
[356576143,1742705447139,-500.0,0.00021917,2]
[356576144,1742705447149,-500.0,0.00021917,2]
[356576145,1742705447159,-804.9,0.00021917,2]
[356576146,1742705447169,-2257.33,0.00021917,2]
[356576147,1742705447179,-500.0,0.00021917,2]
[356576148,1742705447189,-500.0,0.00021917,2]
[356576149,1742705447199,-500.0,0.00021917,2]
[356576150,1742705447209,-500.0,0.00021917,2]
[356576151,1742705447219,-500.0,0.00021917,2]
[356576152,1742705447229,-500.0,0.00021917,2]
[356576153,1742705447239,-516.51,0.00021917,2]
[356576154,1742705447249,-917.47,0.00021917,2]
[356576155,1742705447259,-500.0,0.00021917,2]
[356576156,1742705447269,-500.0,0.00021917,2]
[356576157,1742705447279,-631.92,0.00021917,2]
[356576158,1742705447289,-500.0,0.00021917,2]
[356576159,1742705447299,-500.0,0.00021917,2]
[356576160,1742705447309,-27849.74,0.00021917,2]
[356576161,1742705447319,-270878.15,0.00021917,2]
[356576162,1742705447329,-640.09,0.00021917,2]
[356576163,1742705447339,-500.0,0.00021917,2]
[356576164,1742705447348,-500.0,0.00021917,2]
[356576165,1742705447359,-500.0,0.00021917,2]
[356576166,1742705447369,-1244.39,0.00021917,2]
[356576167,1742705447379,-9254.97,0.00021917,2]
[356576168,1742705447388,-3222.49,0.00021917,2]
[356576169,1742705447402,-500.0,0.00021917,2]
[356576170,1742705447412,-1983.77,0.00021917,2]
[356576171,1742705447422,-5121.27,0.00021917,2]
[356576172,1742705447431,-500.0,0.00021917,2]
[356576173,1742705447442,-500.0,0.00021917,2]
[356576174,1742705447452,-500.0,0.00021917,2]
[356576175,1742705447462,-576.17637177,0.00021917,2]
[356576176,1742705447473,-500.0,0.00021917,2]
[356576177,1742705447483,-500.0,0.00021917,2]
[356576178,1742705447495,-1382.40496589,0.00021917,2]
[356576179,1742705447511,-3111.85503411,0.00021917,2]
[356576180,1742705447520,-2250.16,0.00021917,2]
[356576181,1742705447530,-893.24,0.00021917,2]
[356576182,1742705447543,-500.0,0.00021917,2]
[356576183,1742705447552,-3714.34,0.00021917,2]
[356576184,1742705447562,-7613.83467073,0.00021917,2]
[356576185,1742705450785,834.51197368,0.00022191,7]
[356576186,1742705507372,-24900.0,0.00021013,2]
[356576187,1742705507394,-5000.0,0.00021518,2]
[356576188,1742705507419,-500.0,0.00021618,2]
[356576189,1742705507439,-161.32402093,0.00021618,2]
[356576190,1742705507461,-500.0,0.00021618,2]
[356576191,1742705507483,-500.0,0.00021618,2]
[356576192,1742705507505,-500.0,0.00021618,2]
[356576193,1742705507527,-500.0,0.00021618,2]
[356576194,1742705507548,-650.0,0.00021618,2]
[356576195,1742705507569,-500.0,0.00021618,2]
[356576196,1742705507592,-500.0,0.00021618,2]
[356576197,1742705507614,-500.0,0.00021618,2]
[356576198,1742705507636,-105.81361325,0.00021618,2]
[356576200,1742705749250,178.592563,0.00010959,2]
[356576203,1742706427083,-698.7399928,0.00020493,2]
[356576204,1742706427104,-186.4270124,0.0002061,2]
[356576205,1742706427125,-500.0,0.0002079,2]
[356576206,1742706427149,-580.801192,0.00020826,2]